bitfinex/quotes_ETHUSD_20241106
["timestamp","ask_amount","ask_price","bid_price","bid_amount"]
[1730887118552,0.28276386,2624.8,2624.3,3.81051]
[1730887118858,0.28276386,2624.7,2624.3,7.62093]
[1730887119039,0.28276386,2624.6,2624.3,3.81042]
[1730887119240,0.28276386,2624.5,2624.3,3.81042]
[1730887119446,3.80984,2624.8,2624.3,3.81042]
[1730887119945,0.28294927,2624.7,2624.1,4.63432]
[1730887120259,4.09311927,2624.6,2624.1,4.63432]
[1730887120578,0.7855,2624.4,2624.0,3.81089]
[1730887120888,0.28294927,2624.3,2624.0,3.81089]
[1730887121086,0.28318494,2624.3,2624.0,3.81089]
[1730887121579,0.28318494,2624.3,2623.9,3.81102]
[1730887121759,0.28318494,2624.2,2624.0,3.8109]
[1730887121960,3.81039,2624.4,2624.0,3.8109]
[1730887122182,0.28345064,2624.3,2624.0,3.8109]
[1730887122361,0.28345064,2624.2,2624.0,3.8109]
[1730887122558,3.81039,2624.4,2624.0,3.81096]
[1730887122764,0.28360934,2624.3,2624.0,3.81096]
[1730887122964,0.28360934,2624.2,2624.0,3.81096]
[1730887123158,3.81026,2624.5,2624.0,3.81096]
[1730887123358,0.28380063,2624.4,2624.0,3.81096]
[1730887123569,0.28380063,2624.3,2624.2,4.62015]
[1730887124487,0.28380063,2624.3,2624.0,3.81089]
[1730887124652,7.62058,2624.5,2624.0,3.81089]
[1730887124988,0.28397178,2624.4,2624.0,3.81089]
[1730887125282,0.28397178,2624.3,2624.1,3.81075]
[1730887125487,0.28397178,2624.2,2624.1,3.81075]
[1730887127389,0.28397178,2624.2,2624.0,3.81089]
[1730887127553,0.28397178,2624.1,2624.0,3.81089]
[1730887128389,3.81005,2624.7,2624.1,3.81082]
[1730887128566,0.2844475,2624.6,2624.1,3.81082]
[1730887128765,0.2844475,2624.5,2624.1,3.81082]
[1730887128962,0.2844475,2624.4,2624.2,3.81068]
[1730887129184,4.69428976,2624.9,2624.2,7.59348]
[1730887129185,0.2844475,2624.3,2624.2,7.59348]
[1730887130059,0.8183,2624.9,2624.4,3.81039]
[1730887130301,0.28460781,2624.8,2624.7,3.80995]
[1730887130593,0.28460781,2624.8,2624.7,4.59275]
[1730887135096,0.28460781,2624.8,2624.7,7.59275]
[1730887135288,0.28460781,2624.8,2624.7,7.66893606]
[1730887136559,0.28460781,2624.8,2624.7,7.59275]
[1730887139796,0.8182,2625.4,2625.1,3.80937]
[1730887140293,0.28466647,2625.3,2625.1,3.80937]
[1730887140511,0.28466647,2625.2,2624.9,3.80957]
[1730887140660,0.28466647,2625.1,2625.0,3.80944]
[1730887141186,0.28466647,2625.1,2624.8,6.8098]
[1730887141505,0.28466647,2625.0,2624.6,3.8101]
[1730887141699,0.28466647,2624.9,2624.6,3.8101]
[1730887141864,0.28466647,2624.8,2624.5,3.81017]
[1730887142193,3.80952,2625.0,2624.5,3.81017]
[1730887142194,0.28466647,2624.7,2624.6,3.0]
[1730887142507,4.58812,2625.0,2624.5,3.81017]
[1730887142666,0.28469126,2624.7,2624.5,3.81017]
[1730887142865,0.28469126,2624.7,2624.5,7.62033]
[1730887143059,0.28469126,2624.7,2624.4,0.7951]
[1730887143274,0.28469126,2624.7,2624.6,3.8101]
[1730887143968,0.56938522,2624.7,2624.6,3.8101]
[1730887144607,0.56938522,2624.7,2624.6,6.8101]
[1730887145399,0.56938522,2624.7,2624.6,7.6073]
[1730887147485,0.56938522,2624.7,2624.6,6.8101]
[1730887147665,0.56934494,2624.7,2624.6,6.8101]
[1730887148117,0.56934494,2624.7,2624.5,3.81024]
[1730887148323,0.28465368,2624.6,2624.5,3.81024]
[1730887148622,0.28465368,2624.6,2624.4,3.81038]
[1730887148827,0.28465368,2624.5,2624.4,3.81038]
[1730887149390,0.28465368,2624.5,2624.3,6.81052]
[1730887149588,0.28465368,2624.4,2624.3,6.81052]
[1730887150284,0.28469126,2624.7,2624.3,6.81052]
[1730887150490,0.8219,2624.6,2624.3,6.81052]
[1730887150730,0.28473059,2624.5,2624.3,6.81052]
[1730887150910,0.28473059,2624.4,2624.3,6.81052]
[1730887152909,0.8219,2624.6,2624.3,6.81052]
[1730887153089,0.28479603,2624.5,2624.4,3.81034]
[1730887157325,0.8219,2624.6,2624.4,3.81034]
[1730887158340,0.8013,2625.1,2624.6,3.81002]
[1730887158489,4.61077,2625.1,2624.6,7.62004]
[1730887158801,3.80952,2625.0,2624.6,3.81002]
[1730887159723,3.80973,2624.9,2624.4,3.81032]
[1730887159921,4.61118,2624.8,2624.4,3.81032]
[1730887160126,3.81002,2624.7,2624.3,3.0]
[1730887160540,3.81002,2624.7,2624.3,6.81053]
[1730887160696,0.8013,2624.8,2624.5,3.81015]
[1730887160897,0.8013,2624.8,2624.4,3.81037]
[1730887161196,4.61117,2624.8,2624.3,3.81043]
[1730887161392,0.8013,2624.7,2623.7,0.7912]
[1730887161595,0.8013,2624.7,2623.2,0.01]
[1730887161596,0.8013,2624.2,2623.2,0.799]
[1730887161842,0.7631,2623.5,2622.9,0.05717708]
[1730887162059,3.81208,2623.3,2622.9,0.05717708]
[1730887162329,3.81224,2623.2,2622.9,0.05717708]
[1730887162857,0.7631,2623.5,2622.9,0.05717708]
[1730887163063,0.7631,2623.5,2623.0,3.8123]
[1730887163419,0.7631,2623.5,2623.1,3.81226]
[1730887163716,0.7631,2623.5,2623.2,3.8121]
[1730887164418,0.7631,2623.5,2623.0,3.8123]
[1730887164823,0.7631,2623.5,2623.2,3.81212]
[1730887165546,4.56714,2623.8,2623.3,3.81194]
[1730887165960,4.56714,2623.8,2623.2,3.81212]
[1730887166457,0.28411374,2623.7,2623.2,3.81212]
[1730887166658,0.28411374,2623.6,2623.2,3.81212]
[1730887166863,0.28411374,2623.5,2623.0,7.62469]
[1730887167035,0.28402631,2623.4,2623.0,3.81234]
[1730887167233,0.28402631,2623.3,2623.0,3.81234]
[1730887167553,3.8116,2623.6,2623.0,3.81234]
[1730887167766,0.66506509,2623.5,2623.1,3.81227]
[1730887168049,0.28390509,2623.4,2623.1,3.81227]
[1730887168217,3.8116,2623.6,2623.1,3.81227]
[1730887168413,0.28380306,2623.5,2623.1,3.81227]
[1730887168641,0.28380306,2623.4,2623.1,3.81227]
[1730887168852,4.5671,2623.8,2623.3,3.81197]
[1730887169066,0.74051026,2623.7,2623.3,3.81197]
[1730887169278,0.28380026,2623.6,2623.3,3.81197]
[1730887169553,4.26819,2623.7,2623.1,3.81217]
[1730887169751,0.45671,2623.7,2623.2,3.81205]
[1730887169930,4.26815,2623.7,2623.2,3.81205]
[1730887170131,0.28374248,2623.5,2623.2,3.81205]
[1730887170335,3.81144,2623.7,2623.2,3.81205]
[1730887170663,0.28369614,2623.6,2623.3,3.81197]
[1730887170964,4.56711,2623.8,2623.3,3.81191]
[1730887171124,0.2836899,2623.7,2623.3,3.81191]
[1730887171329,0.2836899,2623.6,2623.3,3.81191]
[1730887171547,5.40492,2623.8,2623.3,3.81191]
[1730887171825,0.28368602,2623.7,2623.3,3.81191]
[1730887172053,0.28368602,2623.6,2623.3,3.81191]
[1730887172256,4.56711,2623.8,2623.3,3.8119]
[1730887172459,0.28366459,2623.7,2623.3,3.8119]
[1730887172660,0.28366459,2623.6,2623.3,3.8119]
[1730887172821,8.37851,2623.8,2623.3,3.8119]
[1730887173025,4.09507664,2623.7,2622.7,3.0]
[1730887173264,3.81141,2623.7,2623.1,7.62438]
[1730887173567,0.28364135,2623.6,2623.1,7.62438]
[1730887173867,3.81141,2623.7,2623.2,3.81212]
[1730887174117,0.28364169,2623.6,2623.2,3.81212]
[1730887174245,3.81141,2623.7,2623.2,3.81212]
[1730887174428,0.28364997,2623.6,2623.2,3.81212]
[1730887174733,3.81141,2623.7,2623.1,3.81217]
[1730887174940,0.8097,2623.5,2623.1,7.62436]
[1730887175137,0.8097,2623.5,2623.1,3.81217]
[1730887175342,0.8097,2623.5,2623.0,3.0]
[1730887175555,3.81187,2623.4,2623.0,6.8124]
[1730887175737,3.81187,2623.4,2623.0,3.0]
[1730887175942,7.62383,2623.4,2622.9,3.81246]
[1730887176139,0.781,2623.2,2622.6,0.8328]
[1730887176340,3.81229,2623.1,2622.6,3.81293]
[1730887176557,3.81229,2623.1,2622.6,7.62585]
[1730887177134,0.781,2623.2,2622.1,4.60686]
[1730887177135,0.781,2623.2,2622.7,3.81284]
[1730887177334,0.781,2623.2,2622.9,3.81255]
[1730887177570,0.751,2623.2,2622.9,3.81255]
[1730887177758,0.28374709,2623.1,2622.9,3.81255]
[1730887177944,0.751,2623.2,2622.9,3.81255]
[1730887178147,0.28374725,2623.1,2622.7,3.81275]
[1730887178357,0.751,2623.2,2622.8,3.88887602]
[1730887178664,4.43858951,2623.4,2622.9,3.81254]
[1730887178665,3.81187,2623.4,2622.9,3.81254]
[1730887178830,3.0,2624.0,2623.0,3.88855149]
[1730887178831,0.28375248,2623.3,2623.0,3.88855149]
[1730887179032,3.81163,2623.6,2623.2,3.81213]
[1730887179333,0.28374797,2623.5,2623.2,3.81213]
[1730887179643,0.28374797,2623.4,2623.2,3.81204]
[1730887179977,3.81142,2623.7,2623.2,3.81212]
[1730887180266,4.09529889,2623.6,2623.2,3.81212]
[1730887180470,0.28373889,2623.5,2623.2,3.81212]
[1730887180629,1.07773889,2623.5,2623.2,3.81212]
[1730887180826,0.28373889,2623.4,2623.2,3.81212]
[1730887181439,0.28373889,2623.4,2623.1,3.81227]
[1730887181645,0.28373889,2623.4,2623.0,3.81231]
[1730887182471,0.28373889,2623.4,2623.0,7.62466]
[1730887182965,0.28373889,2623.4,2623.1,3.81225]
[1730887183533,0.28373889,2623.4,2623.0,3.81231]
[1730887183957,0.28373889,2623.4,2623.0,7.62463]
[1730887184161,0.28373889,2623.4,2623.0,7.62467]
[1730887184439,0.28399767,2623.3,2623.0,7.62467]
[1730887184673,4.60577,2623.5,2623.0,7.62467]
[1730887184876,0.28399787,2623.4,2623.0,7.62467]
[1730887185051,0.28399787,2623.3,2623.0,7.62467]
[1730887185237,0.28399787,2623.2,2623.0,7.62467]
[1730887185440,4.60577,2623.5,2623.0,7.62467]
[1730887185769,0.28409823,2623.4,2623.0,3.81231]
[1730887185956,0.28409823,2623.3,2623.0,3.81231]
[1730887186155,0.28409823,2623.2,2623.0,3.81231]
[1730887186357,0.28409823,2623.1,2622.9,3.81255]
[1730887186576,3.812,2623.3,2622.5,0.8068]
[1730887186876,4.09641512,2623.2,2622.7,3.81278]
[1730887187193,0.28421512,2623.1,2623.0,3.81242]
[1730887187529,0.28421512,2623.3,2623.0,3.81242]
[1730887187770,0.28421512,2623.2,2623.0,3.81242]
[1730887188138,0.28421512,2623.1,2622.9,7.62496]
[1730887188432,0.28421512,2623.0,2622.9,7.62496]
[1730887188868,0.28421512,2623.0,2622.9,3.81247]
[1730887189869,3.81186,2623.4,2622.9,3.81247]
[1730887190388,0.28504309,2623.3,2622.9,3.81247]
[1730887190594,0.28504309,2623.2,2622.9,3.81247]
[1730887190798,0.28504309,2623.1,2622.9,3.81247]
[1730887191111,0.28504309,2623.0,2622.9,3.81247]
[1730887191782,0.285505,2623.0,2622.9,3.81247]
[1730887195275,8.41747,2623.5,2622.9,3.81247]
[1730887195698,0.28550212,2623.4,2622.9,3.81247]
[1730887195899,0.28550212,2623.3,2622.9,3.81247]
[1730887196107,0.28550212,2623.2,2622.9,3.81247]
[1730887196404,8.41747,2623.5,2622.9,3.81247]
[1730887196405,0.28550212,2623.1,2623.0,3.88865996]
[1730887197413,0.28550212,2623.1,2623.0,3.81242]
[1730887198305,0.28550212,2623.1,2623.0,6.81242]
[1730887198886,0.76,2623.8,2623.4,3.81181]
[1730887199086,0.76,2623.8,2623.3,3.81196]
[1730887199483,0.28539945,2623.7,2623.3,3.81196]
[1730887199695,0.28539945,2623.6,2623.3,3.81196]
[1730887199902,0.28539945,2623.5,2623.4,3.81182]
[1730887200280,0.26947945,2623.5,2623.4,3.81182]
[1730887200482,0.26947945,2623.5,2623.4,7.65004302]
[1730887200901,0.755,2625.0,2624.2,3.81068]
[1730887201103,0.755,2624.8,2624.5,3.81015]
[1730887201306,0.755,2624.8,2624.5,3.81024]
[1730887201514,0.755,2624.8,2624.6,3.81002]
[1730887201783,0.755,2624.8,2624.3,3.81043]
[1730887201985,4.56492,2624.8,2624.2,3.81064]
[1730887202220,0.837473,2624.7,2624.2,3.81064]
[1730887203317,3.81025,2624.5,2623.9,0.7695]
[1730887203514,0.837473,2624.7,2623.6,3.81155]
[1730887203515,3.81061,2624.3,2623.6,3.81155]
[1730887203687,0.7512,2624.2,2623.5,3.81159]
[1730887203881,4.56201,2624.2,2623.5,3.81159]
[1730887204082,3.8109,2624.1,2623.5,3.81159]
[1730887204284,0.7625,2624.0,2623.5,3.81159]
[1730887204515,1.21984,2624.0,2623.3,3.81188]
[1730887204724,1.21984,2624.0,2623.6,3.81154]
[1730887205028,1.21984,2624.0,2623.5,3.81166]
[1730887205229,5.03089,2624.0,2623.4,3.81174]
[1730887205520,3.885299,2623.9,2623.4,3.81174]
[1730887205926,3.885299,2623.9,2623.3,3.81197]
[1730887206099,3.81129,2623.8,2623.2,3.81203]
[1730887206398,0.8027,2623.7,2623.2,3.81203]
[1730887206989,0.8027,2623.7,2623.3,3.81184]
[1730887207189,0.8027,2623.7,2623.4,3.81178]
[1730887207422,0.7871,2624.0,2623.6,3.81155]
[1730887207629,0.7871,2624.0,2623.5,3.8117]
[1730887207920,0.7871,2624.0,2623.6,3.81154]
[1730887208714,0.7871,2624.0,2623.7,0.07622401]
[1730887208916,0.7871,2624.0,2623.7,3.81133]
[1730887209155,0.7871,2624.0,2623.7,0.762287]
[1730887209320,0.7908,2624.2,2623.9,7.62206]
[1730887209646,0.7908,2624.2,2623.8,3.8112]
[1730887209850,0.7908,2624.2,2623.7,3.81132]
[1730887210226,0.7908,2624.2,2623.7,3.81131]
[1730887210426,5.061691,2624.2,2623.6,3.81152]
[1730887210636,5.061691,2624.2,2623.7,3.81139]
[1730887211351,5.061691,2624.2,2623.6,3.81154]
[1730887211505,5.061691,2624.2,2623.5,3.8117]
[1730887211506,3.81084,2624.1,2623.5,3.8117]
[1730887211910,3.81084,2624.1,2623.5,7.62332]
[1730887212205,5.061691,2624.2,2623.7,3.8114]
[1730887212410,0.28444247,2624.0,2623.5,3.81162]
[1730887212706,4.09533247,2624.1,2623.5,7.62322]
[1730887212911,0.28444247,2624.0,2623.5,3.8116]
[1730887213135,0.28444247,2623.9,2623.5,3.8116]
[1730887213330,0.28444247,2623.8,2623.5,7.62323]
[1730887213547,3.81089,2624.1,2623.5,3.8116]
[1730887213757,0.28445876,2624.0,2623.5,3.8116]
[1730887213912,0.28445876,2623.9,2623.5,3.8116]
[1730887214244,0.28445876,2623.8,2623.4,4.63723]
[1730887214434,1.04885876,2623.7,2623.3,3.81198]
[1730887214643,0.28445876,2623.6,2623.3,3.81198]
[1730887214848,4.09609876,2623.6,2622.9,3.81248]
[1730887215143,1.04885876,2623.5,2623.0,3.81241]
[1730887215452,0.28445876,2623.4,2623.0,3.81241]
[1730887215646,0.28445876,2623.4,2622.9,3.81253]
[1730887215855,0.28445876,2623.4,2622.9,7.62503]
[1730887216036,0.28452186,2623.3,2622.9,7.62503]
[1730887216264,0.28452186,2623.3,2623.2,3.81213]
[1730887217052,0.8123,2623.8,2623.3,3.81199]
[1730887217254,0.28455867,2623.7,2623.4,3.81178]
[1730887217547,0.28455857,2623.6,2623.4,3.81178]
[1730887217748,0.28455857,2623.5,2623.3,3.81199]
[1730887218044,0.8123,2623.8,2623.1,3.8122]
[1730887218045,0.28455528,2623.4,2623.1,7.62439]
[1730887218275,3.81143,2623.7,2623.1,3.81219]
[1730887218412,0.8015,2623.5,2623.1,3.81219]
[1730887218606,0.28458884,2623.4,2623.1,3.81219]
[1730887218847,0.28458884,2623.4,2623.2,3.81202]
[1730887219011,0.28458884,2623.4,2623.2,3.81199]
[1730887219207,0.28458884,2623.4,2623.3,3.81199]
[1730887219637,0.28458884,2623.4,2623.2,3.8121]
[1730887219845,0.28458884,2623.6,2623.2,3.8121]
[1730887220050,0.28458884,2623.5,2623.2,7.62416]
[1730887220258,0.28458884,2623.4,2623.2,7.62416]
[1730887220551,0.28458884,2623.3,2623.2,7.62416]
[1730887220754,0.8015,2623.7,2623.2,3.81206]
[1730887220921,0.28464841,2623.6,2623.3,3.81195]
[1730887221128,0.28464841,2623.5,2623.3,3.81195]
[1730887221339,0.28464841,2623.4,2623.3,3.81195]
[1730887221646,0.28464841,2623.6,2623.3,3.81195]
[1730887221854,0.28464841,2623.5,2623.3,3.81195]
[1730887222060,0.28464841,2623.4,2623.2,3.81206]
[1730887222349,0.28464841,2623.3,2623.2,3.81206]
[1730887222912,4.61293,2623.7,2623.2,3.81206]
[1730887223125,5.455349,2623.7,2622.8,0.7939]
[1730887223368,3.81165,2623.6,2623.0,3.81231]
[1730887223660,0.28473263,2623.3,2623.0,7.62466]
[1730887223844,0.28473263,2623.5,2623.1,3.8122]
[1730887224160,4.61293,2623.7,2623.0,3.81231]
[1730887224161,0.28477015,2623.4,2623.0,3.81231]
[1730887224468,0.28477015,2623.3,2623.1,3.81227]
[1730887224765,3.81162,2623.6,2623.1,3.81227]
[1730887225064,0.28481338,2623.5,2623.1,3.81227]
[1730887225220,0.28481338,2623.4,2623.1,3.81227]
[1730887225422,0.28481338,2623.3,2623.1,3.81227]
[1730887225625,0.28481338,2623.2,2622.9,3.81256]
[1730887225824,3.81162,2623.6,2622.9,3.81256]
[1730887226065,0.28485255,2623.5,2622.8,4.60651]
[1730887226228,0.28485255,2623.4,2622.8,4.60651]
[1730887226428,0.28485255,2623.3,2622.8,4.60651]
[1730887226853,0.28485255,2623.2,2622.8,4.60651]
[1730887227131,3.81172,2623.5,2622.8,4.60651]
[1730887227132,0.28485255,2623.1,2622.9,0.460651]
[1730887227350,3.81172,2623.5,2622.9,0.460651]
[1730887227552,0.28491496,2623.4,2622.9,0.460651]
[1730887227865,0.28491496,2623.3,2622.9,0.460651]
[1730887228069,0.28491496,2623.2,2622.9,0.460651]
[1730887228248,0.28491496,2623.1,2622.9,0.460651]
[1730887228563,3.81155,2623.6,2622.8,4.60651]
[1730887228729,0.28489455,2623.5,2622.8,4.60651]
[1730887228930,0.28489455,2623.4,2622.8,4.60651]
[1730887229151,0.8052,2623.2,2622.6,4.6371]
[1730887229325,0.8052,2623.2,2622.7,3.81286]
[1730887229326,0.28489455,2623.1,2622.7,3.81286]
[1730887229535,0.28489455,2623.0,2622.7,3.81286]
[1730887229736,0.8052,2623.2,2622.7,3.81286]
[1730887230046,0.8052,2623.2,2622.8,3.81269]
[1730887230247,0.2848781,2623.1,2622.8,3.81269]
[1730887230424,0.2848781,2623.0,2622.8,3.81269]
[1730887230621,0.7778,2623.7,2623.1,3.81221]
[1730887230862,0.7778,2623.7,2622.8,3.81261]
[1730887230863,4.09642595,2623.6,2622.8,3.81261]
[1730887231030,0.28484595,2623.5,2622.9,3.81256]
[1730887231229,0.28484595,2623.4,2622.9,3.81256]
[1730887231428,0.28484595,2623.3,2622.9,3.81256]
[1730887231665,0.28484595,2623.2,2622.9,3.81256]
[1730887231867,0.28484595,2623.1,2622.8,3.8127]
[1730887232160,0.28495712,2623.0,2622.7,3.81285]
[1730887232363,0.8032,2623.2,2622.7,7.62558]
[1730887232555,0.28507594,2623.1,2622.7,7.62558]
[1730887232866,0.28507594,2623.0,2622.7,7.62558]
[1730887233070,0.8032,2623.2,2622.7,3.81273]
[1730887233229,0.28520216,2623.1,2622.7,7.62547]
[1730887233428,0.28520216,2623.0,2622.7,3.81273]
[1730887233626,0.28520252,2622.9,2622.8,0.463683]
[1730887234469,0.28520252,2622.9,2622.5,0.7649]
[1730887234762,0.28520252,2622.8,2622.3,7.57834]
[1730887234964,0.28520252,2622.7,2622.3,7.57834]
[1730887235129,3.81236,2623.1,2622.3,4.57834]
[1730887235326,0.28518299,2623.0,2622.3,4.57834]
[1730887235529,0.28518299,2622.9,2622.3,4.57834]
[1730887235828,0.28518299,2622.8,2622.6,3.81294]
[1730887236035,0.28518299,2622.7,2622.6,3.88919163]
[1730887236253,0.28518299,2622.7,2622.5,3.88928259]
[1730887236430,0.28518299,2622.6,2622.5,3.88928259]
[1730887236769,0.28518299,2622.6,2622.5,3.81303]
[1730887237542,4.61541,2623.2,2622.5,3.81303]
[1730887237736,0.28504818,2623.1,2622.5,3.81303]
[1730887237938,0.28504818,2623.0,2622.7,3.81279]
[1730887238157,0.28504818,2622.9,2622.8,0.38890405]
[1730887238337,0.28504818,2622.9,2622.7,3.81279]
[1730887238538,0.28504818,2622.8,2622.7,3.81279]
[1730887238776,0.28504818,2622.8,2622.7,4.58259]
[1730887238976,0.8032,2623.2,2622.7,4.58259]
[1730887239284,0.28500841,2623.1,2622.7,4.58259]
[1730887239478,0.28500841,2623.0,2622.9,3.81249]
[1730887239779,0.28500841,2623.0,2622.7,4.58255]
[1730887239948,4.63936,2623.4,2622.7,8.39535]
[1730887240151,0.28503391,2623.3,2622.7,8.39535]
[1730887240363,0.28503391,2623.2,2622.8,3.8127]
[1730887240560,0.28503391,2623.1,2622.9,3.81255]
[1730887240766,0.28503391,2623.0,2622.8,3.8127]
[1730887240978,0.8275,2623.4,2622.8,3.8127]
[1730887241661,0.28509409,2623.3,2622.8,3.8127]
[1730887241880,0.28509409,2623.2,2622.8,3.8127]
[1730887242045,0.28509409,2623.1,2622.8,3.8127]
[1730887242244,0.28509409,2623.0,2622.8,3.8127]
[1730887242443,0.28509409,2622.9,2622.8,3.8127]
[1730887243374,0.28509409,2622.9,2622.7,4.58264]
[1730887243573,4.63934,2623.4,2622.7,4.58264]
[1730887243775,0.28528173,2623.3,2622.7,4.58258]
[1730887243983,0.28528173,2623.2,2622.7,4.58258]
[1730887244292,0.28528173,2623.1,2622.8,3.81266]
[1730887244487,0.28528173,2623.0,2622.8,3.81266]
[1730887244642,0.28528173,2622.9,2622.8,3.81266]
[1730887244979,0.2853294,2622.9,2622.8,3.81266]
[1730887247653,0.7823,2623.6,2622.8,3.07624163]
[1730887247895,0.28532991,2623.5,2623.1,3.81219]
[1730887248196,0.28532991,2623.4,2623.1,3.81219]
[1730887248405,0.28532991,2623.4,2623.2,0.381219]
[1730887248555,0.7823,2623.6,2623.2,0.381219]
[1730887248898,0.28534248,2623.3,2623.2,0.381219]
[1730887249401,0.28534248,2623.3,2623.2,4.26958304]
[1730887249595,0.28534248,2623.3,2623.2,4.193349]
[1730887250106,0.28534248,2623.3,2623.2,0.381219]
[1730887252222,0.28538484,2623.3,2622.9,3.81246]
[1730887252497,0.28538484,2623.2,2623.0,3.81234]
[1730887252805,4.46247414,2624.3,2623.2,0.8066]
[1730887253006,1.05146732,2624.2,2623.8,3.81116]
[1730887253307,0.28536732,2624.1,2624.0,3.81097]
[1730887253806,0.766,2624.8,2624.7,3.80995]
[1730887254111,0.766,2625.1,2624.9,3.80954]
[1730887254320,0.8127,2625.6,2625.1,3.80937]
[1730887254503,0.28463764,2625.5,2625.3,3.80899]
[1730887254801,0.28463764,2625.4,2625.3,3.80899]
[1730887255704,0.2840819,2625.4,2625.3,3.80899]
[1730887256708,0.8127,2625.6,2625.3,3.80899]
[1730887256903,0.28369612,2625.5,2625.1,3.80925]
[1730887257057,0.28370152,2625.4,2624.9,3.80953]
[1730887257262,0.8127,2625.6,2624.9,3.80962]
[1730887257462,0.74552939,2625.5,2624.9,3.80962]
[1730887257695,0.28340539,2625.4,2624.9,3.80962]
[1730887258107,0.462124,2625.5,2624.9,3.80962]
[1730887260209,0.462124,2625.5,2624.8,3.80969]
[1730887260378,3.80906,2625.4,2624.7,3.80982]
[1730887260590,3.80923,2625.2,2624.5,3.81018]
[1730887260791,3.80923,2625.2,2624.4,3.81036]
[1730887260991,3.80946,2625.1,2624.4,3.81036]
[1730887261326,3.80923,2625.2,2624.6,3.81006]
[1730887261520,0.463803,2625.1,2624.6,3.81006]
[1730887262124,0.463803,2625.1,2624.7,3.80994]
[1730887262428,0.8288,2625.3,2624.8,0.07619216]
[1730887262580,0.8288,2625.3,2625.0,3.8095]
[1730887262781,0.8002,2625.6,2625.2,3.80914]
[1730887263304,0.8002,2625.6,2625.1,3.80934]
[1730887263888,1.6187945,2625.6,2625.0,3.80942]
[1730887264618,5.4274445,2625.6,2625.0,3.80942]
[1730887264824,9.2362245,2625.6,2624.9,3.80965]
[1730887265226,5.4274445,2625.6,2625.0,3.80951]
[1730887265924,5.4274445,2625.6,2625.0,7.61896]
[1730887266222,5.4274445,2625.6,2624.5,3.81018]
[1730887266223,3.8093,2625.2,2624.5,3.81018]
[1730887266384,4.62848,2625.1,2624.5,3.81018]
[1730887267088,3.8099,2624.8,2624.1,3.81073]
[1730887267288,3.81013,2624.6,2624.0,3.81096]
[1730887267690,3.81013,2624.6,2623.9,3.81106]
[1730887267896,4.271743,2624.6,2623.9,3.81106]
[1730887268109,4.271743,2624.6,2624.0,3.81096]
[1730887268786,4.61598,2624.7,2624.1,3.8108]
[1730887269214,4.0928823,2624.6,2624.0,3.81096]
[1730887269405,3.81011,2624.6,2624.0,3.81096]
[1730887269925,3.81025,2624.5,2623.9,3.81111]
[1730887270425,3.81018,2624.6,2624.0,3.81089]
[1730887270627,4.271798,2624.6,2624.0,3.81089]
[1730887271005,4.271798,2624.6,2623.9,3.81111]
[1730887271204,8.081988,2624.6,2623.9,3.81111]
[1730887271433,0.461618,2624.6,2624.0,3.81084]
[1730887271595,4.61598,2624.7,2624.1,0.07620895]
[1730887271795,4.09312573,2624.6,2624.0,3.81084]
[1730887272034,3.81017,2624.6,2624.0,3.81084]
[1730887272925,0.2830527,2624.5,2623.8,4.192326]
[1730887273139,0.48992227,2624.5,2623.8,4.192296]
[1730887273292,0.48992227,2624.5,2623.9,3.81102]
[1730887273488,4.30018227,2624.5,2623.9,3.81102]
[1730887274094,0.28319266,2624.4,2623.9,3.81102]
[1730887274289,4.30018227,2624.5,2623.9,3.81102]
[1730887274633,0.28324702,2624.4,2623.9,3.81102]
[1730887274822,4.30017227,2624.5,2623.9,3.81102]
[1730887274994,0.28324954,2624.4,2623.9,3.81102]
[1730887275196,0.28324954,2624.3,2623.9,3.811]
[1730887275396,4.30017227,2624.5,2623.9,3.811]
[1730887275612,0.28334877,2624.4,2624.0,3.81096]
[1730887275819,0.28334877,2624.3,2623.9,3.8111]
[1730887276328,0.8073,2624.2,2623.7,3.81131]
[1730887276532,4.618,2624.2,2623.7,3.81131]
[1730887276838,3.81086,2624.1,2623.5,8.45292]
[1730887277144,4.61808,2624.2,2623.5,8.45292]
[1730887277145,4.61808,2624.2,2623.7,3.81139]
[1730887277309,0.28359385,2624.1,2623.7,3.81139]
[1730887277506,0.8073,2624.2,2623.8,3.81125]
[1730887277696,0.8073,2624.2,2623.7,3.81132]
[1730887278208,0.28365703,2624.1,2623.7,3.81132]
[1730887278409,0.8073,2624.2,2623.7,3.81132]
[1730887278591,0.28367882,2624.1,2623.7,3.81132]
[1730887278795,0.8073,2624.2,2623.7,3.81132]
[1730887279034,0.28367983,2624.1,2623.7,3.81132]
[1730887279225,0.28367983,2624.0,2623.7,3.81132]
[1730887279429,0.8073,2624.2,2623.7,3.81132]
[1730887279641,0.2837666,2624.1,2623.7,3.81132]
[1730887279942,0.2837666,2624.0,2623.7,7.62266]
[1730887280245,0.8073,2624.2,2623.7,7.62266]
[1730887280407,0.28385508,2624.1,2623.7,3.81132]
[1730887280607,0.28385508,2624.0,2623.7,3.81132]
[1730887280836,0.8073,2624.2,2623.7,3.81132]
[1730887281030,0.28384589,2624.1,2623.7,3.81132]
[1730887281346,0.28384589,2624.1,2623.5,4.6413]
[1730887281347,0.28384589,2624.0,2623.6,3.81153]
[1730887281635,0.28384589,2624.0,2623.5,4.64129]
[1730887281636,0.28384589,2624.0,2623.7,3.8114]
[1730887281844,4.618,2624.2,2623.7,3.8114]
[1730887282041,0.28395435,2624.1,2623.7,3.8114]
[1730887282345,0.7727,2623.8,2623.2,3.81206]
[1730887282501,0.28395435,2623.7,2623.2,3.81206]
[1730887282703,4.09543435,2623.7,2623.2,3.81206]
[1730887282948,0.28395435,2623.6,2623.2,3.81206]
[1730887283655,0.28395435,2623.6,2623.2,3.81213]
[1730887283858,0.28395435,2623.6,2623.4,3.81174]
[1730887284163,0.28395435,2623.5,2623.4,3.81176]
[1730887284323,0.7727,2623.8,2623.4,3.81176]